bitfinex-derivatives/quotes_SOLF0:USTF0_20250101
["timestamp","ask_amount","ask_price","bid_price","bid_amount"]
[1735747105416,3.02,192.14,192.07,316.6089196]
[1735747105818,2.6081,192.12,192.07,316.6089196]
[1735747106419,2.6081,192.12,192.07,172.69577432]
[1735747106922,2.6081,192.12,192.06,175.30457432]
[1735747107223,2.608,192.13,192.07,2.6088]
[1735747107723,3.02,192.21,192.1,13.03518723]
[1735747108518,2.6074,192.17,192.11,2.6082]
[1735747108717,3.02,192.16,192.11,140.91487211]
[1735747108916,3.02,192.15,192.11,140.91487211]
[1735747109124,5.6277,192.15,192.11,140.91487211]
[1735747109325,3.02,192.15,192.09,86.34788716]
[1735747109825,13.03518723,192.13,192.09,86.34788716]
[1735747110028,13.03518723,192.13,192.07,86.34788716]
[1735747110524,13.03518723,192.1,192.06,28.78262905]
[1735747110730,2.6087,192.08,192.06,28.78262905]
[1735747110930,3.02,192.09,192.06,28.78262905]
[1735747111422,2.6088,192.07,192.06,28.78262905]
[1735747111624,13.03518723,192.07,192.05,7.10737599]
[1735747112327,2.6089,192.06,192.05,7.10737599]
[1735747112629,13.03518723,192.07,191.95,345.39154867]
[1735747112928,2.6096,192.01,191.96,3.2178]
[1735747113128,3.02,192.0,191.95,348.00194867]
[1735747113322,3.02,192.0,191.95,345.39154867]
[1735747113724,3.02,192.0,191.95,287.82629056]
[1735747114528,3.06,192.01,191.95,287.82629056]
[1735747116028,3.06,192.01,191.94,13.03518723]
[1735747116829,2.609,192.06,191.94,13.03518723]
[1735747117028,3.06,192.05,191.94,13.03518723]
[1735747117429,3.06,192.05,191.99,2.6098]
[1735747118329,3.06,192.05,191.94,13.03518723]
[1735747118529,3.06,192.05,191.98,2.61]
[1735747119132,13.03518723,192.03,191.92,1.6306]
[1735747120434,2.6095,192.02,191.96,2.6103]
[1735747120834,13.03518723,192.03,191.96,2.6103]
[1735747121134,15.64448723,192.03,191.96,2.6103]
[1735747122635,2.6093,192.03,191.96,2.6103]
[1735747123136,2.6095,192.02,191.96,2.6103]
[1735747124635,2.6096,192.01,191.96,2.6103]
[1735747124935,3.06,192.0,191.96,2.6103]
[1735747125324,2.61,191.98,191.93,2.6107]
[1735747125533,2.61,191.98,191.92,1.6306]
[1735747125938,2.61,191.98,191.91,3.1631]
[1735747126133,2.6102,191.97,191.92,2.6108]
[1735747126432,13.03518723,191.99,191.87,14.66858723]
[1735747127433,2.6103,191.96,191.9,2.6111]
[1735747127628,3.06,191.95,191.9,2.6111]
[1735747128036,3.06,191.95,191.86,3.0699]
[1735747128230,2.6107,191.93,191.86,3.0699]
[1735747128735,2.6106,191.94,191.88,2.6113]
[1735747130035,2.6106,191.94,191.86,3.0699]
[1735747130233,3.06,191.95,191.86,3.0699]
[1735747131137,5.6705,191.95,191.89,2.6112]
[1735747132636,2.6103,191.97,191.86,3.0699]
[1735747132833,3.06,191.96,191.86,3.0699]
[1735747133435,2.6105,191.95,191.86,3.0699]
[1735747134535,5.6703,191.96,191.9,2.6111]
[1735747136434,3.06,191.96,191.86,3.0699]
[1735747136643,16.09518723,191.96,191.86,3.0699]
[1735747137031,2.6108,191.93,191.87,2.6114]
[1735747137236,2.6108,191.93,191.86,3.0699]
[1735747137436,3.06,191.94,191.87,13.03518723]
[1735747138638,3.06,191.94,191.91,2.6109]
[1735747138946,3.06,191.94,191.87,13.03518723]
[1735747139237,3.06,191.94,191.89,2.6111]
[1735747140043,13.03518723,191.97,191.86,3.0699]
[1735747140239,3.06,191.96,191.86,3.0699]
[1735747140737,2.6107,191.94,191.89,2.6112]
[1735747140941,3.06,191.96,191.89,2.6112]
[1735747142043,2.6107,191.93,191.89,2.6112]
[1735747142243,13.03518723,191.94,191.86,2.6116]
[1735747143242,13.03518723,191.94,191.83,56.07547595]
[1735747143442,13.03518723,191.91,191.84,2.6118]
[1735747143643,2.6114,191.89,191.84,2.6118]
[1735747143842,3.06,191.9,191.84,2.6118]
[1735747144146,13.03518723,191.88,191.83,21.23368326]
[1735747145038,6.1998,191.9,191.83,21.23368326]
[1735747145237,3.06,191.89,191.79,13.03518723]
[1735747145443,3.1398,191.9,191.79,13.03518723]
[1735747145646,3.06,191.89,191.79,13.03518723]
[1735747146135,3.06,191.89,191.86,2.6116]
[1735747146847,3.06,191.89,191.88,2.6114]
[1735747147945,13.03518723,191.94,191.84,78.79894137]
[1735747148146,3.06,191.93,191.91,2.6109]
[1735747148340,3.06,191.92,191.91,2.6109]
[1735747148540,13.03518723,191.97,191.85,13.03518723]
[1735747148741,3.06,191.96,191.92,2.6107]
[1735747148946,3.06,191.96,191.86,78.79894137]
[1735747149143,2.6106,191.94,191.89,2.6112]
[1735747151047,3.06,191.96,191.89,2.6112]
[1735747151249,3.06,191.96,191.86,78.79894137]
[1735747151948,3.06,191.96,191.86,21.23368326]
[1735747152346,2.6104,191.95,191.89,2.6112]
[1735747152547,3.06,191.96,191.89,2.6112]
[1735747153550,13.03518723,191.94,191.86,78.79894137]
[1735747153849,13.03518723,191.94,191.87,2.6115]
[1735747154146,2.6109,191.92,191.87,2.6115]
[1735747154349,3.06,191.91,191.86,81.41054137]
[1735747154550,3.06,191.91,191.86,2.6116]
[1735747154851,5.671,191.91,191.86,2.6116]
[1735747155251,5.671,191.91,191.85,78.79894137]
[1735747155650,5.671,191.91,191.83,81.79454137]
[1735747155946,2.6112,191.89,191.83,81.79454137]
[1735747156547,2.6112,191.89,191.84,2.6118]
[1735747157352,16.09518723,191.91,191.81,165.14682853]
[1735747157552,13.03518723,191.88,191.81,165.14682853]
[1735747157854,13.03518723,191.88,191.81,86.34788716]
[1735747158049,13.03518723,191.88,191.8,165.14682853]
[1735747158449,2.6118,191.86,191.81,2.6122]
[1735747158653,3.06,191.85,191.81,2.6122]
[1735747159252,3.06,191.85,191.79,166.68752853]
[1735747159856,13.03518723,191.88,191.79,166.68752853]
[1735747160047,3.06,191.87,191.79,179.72271576]
[1735747160251,3.06,191.88,191.8,1.5158]
[1735747160449,3.06,191.88,191.86,2.6115]
[1735747161752,3.06,191.88,191.84,2.6118]
[1735747162156,3.06,191.88,191.83,165.14682853]
[1735747162852,5.6715,191.88,191.83,165.14682853]
[1735747163058,3.06,191.88,191.82,167.75892853]
[1735747163262,3.06,191.88,191.82,165.14682853]
[1735747163464,5.6715,191.88,191.82,165.14682853]
[1735747163764,3.06,191.87,191.82,2.6122]
[1735747163962,3.06,191.86,191.82,2.6122]
[1735747164263,3.06,191.85,191.82,2.6122]
[1735747164457,3.06,191.84,191.82,2.6122]
[1735747166465,3.06,191.84,191.83,2.6121]
[1735747166962,2.6113,191.89,191.83,2.6121]
[1735747167164,3.06,191.88,191.8,80.31474137]
[1735747167363,1.5745,191.92,191.82,13.03518723]
[1735747167566,3.06,191.91,191.82,13.03518723]
[1735747168670,3.06,191.91,191.83,4.87371388]
[1735747169069,1.5745,191.92,191.83,4.87371388]
[1735747169370,3.06,191.91,191.83,4.87371388]
[1735747169571,5.671,191.91,191.86,2.6115]
[1735747170164,5.671,191.91,191.82,13.03518723]
[1735747170369,5.671,191.91,191.87,2.6115]
[1735747174165,3.06,191.91,191.82,13.03518723]
[1735747174371,2.6112,191.9,191.85,2.6117]
[1735747174771,3.06,191.91,191.82,13.03518723]
[1735747174970,3.06,191.91,191.87,2.6114]
[1735747176367,5.671,191.91,191.87,2.6114]
[1735747177077,3.06,191.91,191.88,2.6113]
[1735747177373,13.03518723,191.96,191.83,1.4929]
[1735747177676,3.04,191.95,191.83,1.4929]
[1735747177975,3.04,191.94,191.9,2.6111]
[1735747178170,3.04,191.94,191.85,13.03518723]
[1735747178676,3.04,191.93,191.86,1.5811]
[1735747178871,8.85497826,191.98,191.88,13.03518723]
[1735747179072,3.04,191.97,191.94,2.6105]
[1735747180274,2.6099,191.99,191.94,2.6105]
[1735747180475,10.38772873,192.01,191.91,13.03518723]
[1735747180679,3.04,192.0,191.91,13.03518723]
[1735747181079,3.04,192.0,191.95,2.6103]
[1735747181879,5.6498,192.0,191.95,2.6103]
[1735747184175,5.6498,192.0,191.96,2.6102]
[1735747184577,3.04,192.0,191.96,2.6102]
[1735747185082,67.27518723,192.02,191.91,13.03518723]
[1735747185276,3.04,191.99,191.91,13.03518723]
[1735747187483,3.04,191.99,191.95,2.6103]
[1735747187981,3.04,191.99,191.96,2.6103]
[1735747188183,3.04,191.99,191.91,13.03518723]
[1735747188684,3.04,191.99,191.93,2.6106]
[1735747188886,3.04,191.99,191.91,13.03518723]
[1735747189884,3.04,191.99,191.97,2.61]
[1735747190287,3.04,191.99,191.95,8.35687817]
[1735747191285,3.04,191.99,191.96,2.6102]
[1735747191487,3.04,191.99,191.95,8.35687817]
[1735747191685,3.04,191.99,191.9,1.5236]
[1735747191985,3.04,191.99,191.92,8.35687817]
[1735747192487,3.04,191.99,191.94,2.6105]
[1735747192878,3.04,191.99,191.92,8.35687817]
[1735747193082,2.6093,192.04,191.96,8.35687817]
[1735747193284,8.35687817,192.05,191.98,8.35687817]
[1735747193486,8.35687817,192.03,191.98,8.35687817]
[1735747193892,10.96627817,192.03,191.96,8.35687817]
[1735747194487,10.96627817,192.03,191.97,2.61]
[1735747194791,10.96627817,192.03,191.96,8.35687817]
[1735747195490,10.96627817,192.03,191.98,2.61]
[1735747195695,2.6096,192.02,191.95,8.35687817]
[1735747196191,2.6096,192.02,191.96,2.6101]
[1735747197093,2.6097,192.01,191.96,2.6101]
[1735747197291,16.09825039,192.04,191.95,2.6104]
[1735747197988,2.6096,192.02,191.95,2.6104]
[1735747198191,16.09825039,192.04,191.96,2.6103]
[1735747198994,2.6097,192.01,191.96,2.6103]
[1735747203996,3.04,192.04,191.96,2.6103]
[1735747204596,3.04,192.04,191.88,1.6025]
[1735747205394,2.6098,192.0,191.96,2.6102]
[1735747205698,3.02,191.99,191.88,1.6025]
[1735747206503,2.6106,191.94,191.9,2.6111]
[1735747206804,3.02,191.93,191.81,3.02]
[1735747207101,3.02,191.92,191.81,1.551]
[1735747207301,3.02,191.91,191.81,1.551]
[1735747207503,3.02,191.9,191.81,1.551]
[1735747207699,2.6115,191.88,191.81,2.6123]
[1735747207901,3.02,191.87,191.76,1.551]
[1735747208098,3.02,191.86,191.76,1.551]
[1735747208298,3.02,191.92,191.78,3.02]
[1735747208993,3.02,191.92,191.88,2.6112]
[1735747209402,3.02,191.92,191.78,3.02]
[1735747209697,3.02,191.92,191.91,2.611]
[1735747210293,3.02,191.93,191.91,2.611]
[1735747210493,3.02,191.93,191.92,2.6108]
[1735747211001,3.02,191.97,191.94,2.6105]
[1735747211793,3.02,191.97,191.86,4.7456]
[1735747212102,3.02,191.97,191.92,2.6108]
[1735747212301,3.02,191.96,191.86,4.7456]
[1735747213295,2.6104,191.95,191.86,4.7456]
[1735747213502,10.41992842,192.06,191.88,28.50347021]
[1735747213703,11.84630308,192.05,191.92,2.6108]
[1735747214008,3.02,192.05,191.88,28.50347021]
[1735747214305,2.6096,192.01,191.95,2.6103]
[1735747215403,3.02,192.0,191.96,2.6103]
[1735747215900,15.33134633,192.07,191.91,7.12586755]
[1735747216098,3.02,192.06,191.98,2.6099]
[1735747216408,54.26,192.08,191.91,7.12586755]
[1735747216602,3.02,192.05,191.92,3.02]
[1735747216802,54.26,192.08,191.93,1.5594]
[1735747216998,3.02,192.04,192.02,2.6094]
[1735747217205,217.5790213,192.24,191.94,3.1515]
[1735747217407,3.02,192.09,191.94,3.1515]
[1735747217609,3.02,192.08,192.04,2.6092]
[1735747217910,3.02,192.07,191.97,3.02]
[1735747218608,3.02,192.07,192.02,2.6094]
[1735747219011,2.6085,192.1,192.03,2.6093]
[1735747219305,3.02,192.09,191.98,4.87561849]
[1735747219505,11.43824717,192.14,192.07,2.6088]
[1735747219709,2.6079,192.14,192.07,2.6088]
[1735747219905,3.02,192.13,191.99,52.83760996]
[1735747220704,3.02,192.13,192.09,2.6084]
[1735747220905,3.02,192.13,192.03,3.02]
[1735747221107,3.02,192.13,192.04,4.7432]
[1735747222309,4.2209,192.16,192.04,4.7432]
[1735747222505,3.02,192.15,192.04,4.7432]
[1735747222909,3.02,192.15,192.1,2.6082]
[1735747223310,3.02,192.15,192.04,4.7432]
[1735747224008,1.5043,192.25,192.04,4.7432]
[1735747224213,3.0863,192.24,192.05,4.84367064]
[1735747224620,3.02,192.21,192.05,4.84367064]
[1735747225310,3.02,192.21,192.15,2.6074]
[1735747225912,3.02,192.21,192.16,2.6073]
[1735747226317,3.02,192.22,192.09,3.02]
[1735747227119,3.02,192.23,192.1,11.9467037]
[1735747228117,26.3516967,192.26,192.2,2.6069]
[1735747228319,3.02,192.25,192.14,3.02]
[1735747228514,23.7454967,192.26,192.2,2.6068]
[1735747228715,23.7454967,192.26,192.19,3.02]
[1735747229114,23.7454967,192.26,192.2,1.631]
[1735747229421,23.7454967,192.26,192.25,2.6062]
[1735747229422,16.3726967,192.26,192.25,2.6062]
[1735747229616,3.02,192.37,192.24,3.02]
[1735747229813,2.6047,192.36,192.27,2.6058]
[1735747230120,2.6047,192.36,192.2,1.631]
[1735747230316,3.02,192.35,192.29,2.6055]
[1735747230514,3.02,192.36,192.2,1.631]
[1735747230822,1.5814,192.34,192.23,3.02]
[1735747231719,1.5814,192.34,192.28,2.6058]
[1735747232120,1.5814,192.34,192.23,3.02]
[1735747232319,1.5814,192.34,192.2,1.631]
[1735747232617,1.5814,192.34,192.21,3.02]
[1735747232822,1.5814,192.34,192.2,1.631]
[1735747233022,1.5814,192.34,192.21,3.02]
[1735747233524,2.6053,192.32,192.25,2.6061]
[1735747234428,3.08,192.31,192.23,2.6064]
[1735747234824,3.08,192.31,192.18,28.50347021]
[1735747235023,3.08,192.31,192.24,2.6063]
[1735747235615,15.62558577,192.33,192.24,13.02038577]
[1735747235828,3.08,192.32,192.24,13.02038577]
[1735747236124,3.08,192.32,192.28,2.6058]
[1735747236423,3.08,192.32,192.27,13.02038577]
[1735747237225,3.08,192.32,192.29,2.6055]
[1735747237422,3.08,192.32,192.27,13.02038577]
[1735747237728,3.08,192.32,192.29,2.6056]
[1735747238022,3.08,192.32,192.24,13.02038577]
[1735747238418,5.6853,192.32,192.26,2.6061]
[1735747238925,2.6055,192.31,192.24,15.62678577]
[1735747239120,3.08,192.32,192.17,3.08]
[1735747239321,3.08,192.32,192.2,13.02038577]
[1735747239523,13.02038577,192.3,192.17,13.02038577]
[1735747240120,2.6062,192.26,192.18,2.6071]
[1735747240325,6.2639,192.25,192.17,13.02038577]
[1735747240525,6.2639,192.25,192.24,2.6064]
[1735747240724,3.08,192.29,192.24,2.6064]
[1735747240927,3.08,192.29,192.23,13.02038577]
[1735747241426,3.08,192.29,192.26,13.02038577]
[1735747241721,3.08,192.29,192.16,3.08]
[1735747241931,3.08,192.29,192.22,13.02038577]
[1735747242526,3.08,192.29,192.16,7.12586755]
[1735747242727,3.08,192.29,192.19,13.02038577]
[1735747244433,2.606,192.27,192.21,2.6068]
[1735747245831,3.08,192.29,192.22,13.02038577]
[1735747246031,3.08,192.29,192.24,2.6063]
[1735747246828,3.08,192.29,192.26,2.6061]
[1735747247033,3.1839,192.34,192.26,2.6061]
[1735747247229,3.08,192.33,192.26,2.6061]
[1735747247628,3.1839,192.34,192.25,13.02038577]
[1735747247937,2.6054,192.32,192.27,2.606]
[1735747248137,2.6054,192.32,192.22,13.02038577]
[1735747248337,2.6054,192.32,192.22,41.52385598]
[1735747248636,2.6055,192.31,192.22,41.52385598]
[1735747248834,3.08,192.33,192.22,41.52385598]
[1735747249230,2.6056,192.3,192.26,2.6061]
[1735747249836,2.6056,192.3,192.25,2.6062]
[1735747250537,2.6058,192.29,192.24,2.6064]
[1735747250836,3.08,192.28,192.22,13.02038577]
[1735747251026,5.686,192.27,192.23,2.6065]
[1735747251228,3.08,192.26,192.22,13.02038577]
[1735747251430,3.08,192.26,192.2,171.85829779]
[1735747251635,3.0821,192.25,192.21,2.6068]
[1735747252335,3.0821,192.25,192.22,2.6065]
[1735747252733,3.0821,192.25,192.2,314.37564879]
[1735747253038,3.0821,192.25,192.19,2.607]
[1735747254139,2.6065,192.24,192.18,15.62758577]
[1735747254738,2.6066,192.23,192.18,15.62758577]
[1735747255439,2.6067,192.22,192.16,31.11087021]
[1735747255636,3.08,192.21,192.16,2.6074]
[1735747255838,3.08,192.21,192.17,2.6073]
[1735747256433,3.08,192.21,192.15,20.14625332]
[1735747256740,2.6069,192.2,192.15,13.02038577]
[1735747258639,2.6069,192.2,192.15,15.62798577]
[1735747259144,2.6069,192.2,192.16,2.6074]
[1735747261138,3.0821,192.25,192.15,13.02038577]
[1735747261342,3.08,192.24,192.15,13.02038577]
[1735747261842,3.08,192.24,192.18,13.02038577]
[1735747262242,3.08,192.24,192.19,2.607]
[1735747262443,3.08,192.24,192.18,13.02038577]
[1735747262844,3.08,192.24,192.16,2.6073]
[1735747263046,3.08,192.24,192.15,184.87868356]
[1735747263247,3.08,192.24,192.15,171.85829779]
[1735747263447,2.6072,192.18,192.15,171.85829779]
[1735747263648,3.08,192.17,192.14,171.85829779]
[1735747264145,3.08,192.17,192.16,2.6075]
[1735747266047,3.08,192.21,192.15,13.02038577]
[1735747266241,3.08,192.21,192.19,2.6068]
[1735747266450,3.08,192.21,192.18,13.02038577]
[1735747267251,5.6867,192.21,192.16,2.6073]
[1735747267649,5.6867,192.21,192.14,85.51041063]
[1735747267844,5.6867,192.21,192.16,2.6074]
[1735747268053,2.607,192.19,192.14,85.51041063]
[1735747268547,2.607,192.19,192.14,88.11811063]
[1735747268948,2.607,192.19,192.14,2.6077]
[1735747269148,3.08,192.21,192.13,13.02038577]
[1735747269447,2.6071,192.18,192.13,15.62808577]
[1735747270355,2.6074,192.16,192.12,7.12586755]
[1735747270548,3.08,192.15,192.12,7.12586755]
[1735747270951,3.08,192.15,192.12,2.6079]
[1735747271155,3.08,192.15,192.11,28.50347021]
[1735747271357,5.6876,192.15,192.11,28.50347021]
[1735747271654,3.08,192.15,192.1,13.02038577]
[1735747271952,16.10038577,192.15,192.07,7.12586755]
[1735747272158,13.02038577,192.12,192.06,21.37760266]
[1735747272556,2.6087,192.07,192.06,21.37760266]
[1735747272757,5.6887,192.07,192.06,7.08580447]
[1735747273460,5.6887,192.07,192.02,2.6094]
[1735747274158,3.08,192.07,191.95,57.00694042]
[1735747274359,3.08,192.07,191.99,13.02038577]
[1735747275062,2.6089,192.06,192.0,2.6096]
[1735747275357,3.08,192.07,191.99,13.02038577]
[1735747275558,2.6092,192.04,191.99,13.02038577]
[1735747275751,3.08,192.07,191.99,13.02038577]
[1735747276157,5.6888,192.07,191.99,13.02038577]
[1735747276352,3.08,192.07,191.99,13.02038577]
[1735747276758,2.6092,192.03,191.99,13.02038577]
[1735747276952,3.08,192.02,191.99,13.02038577]
[1735747277352,5.6894,192.02,191.99,13.02038577]
[1735747277659,3.08,192.02,191.93,13.02038577]
[1735747278063,2.6097,192.0,191.95,2.6103]
[1735747278467,2.6099,191.98,191.93,15.63098577]
[1735747278766,3.08,191.97,191.93,15.63098577]
[1735747279065,3.08,191.96,191.93,15.63098577]
[1735747279265,3.08,191.95,191.93,15.63098577]
[1735747279467,3.08,191.94,191.93,15.63098577]
[1735747279663,3.08,191.94,191.92,2.6107]
[1735747280360,3.08,191.94,191.9,15.63128577]
[1735747280560,3.08,191.94,191.87,13.02038577]
[1735747280760,2.6107,191.92,191.87,13.02038577]
[1735747280964,3.08,191.94,191.81,1.5565]
[1735747281157,3.08,191.94,191.83,13.02038577]
[1735747281355,2.611,191.9,191.83,13.02038577]
[1735747281659,3.08,191.89,191.83,13.02038577]
[1735747281859,2.6114,191.87,191.8,13.02038577]
[1735747282061,3.08,191.89,191.8,13.02038577]
[1735747282862,2.6117,191.85,191.8,13.02038577]
[1735747283058,3.08,191.84,191.8,13.02038577]
[1735747283262,3.08,191.84,191.76,71.76552086]
[1735747283263,3.08,191.83,191.78,13.02038577]
[1735747283457,3.08,191.82,191.79,2.6125]
[1735747283661,3.08,191.81,191.78,13.02038577]
[1735747283866,3.08,191.8,191.78,13.02038577]
[1735747284167,3.08,191.8,191.76,71.76552086]
[1735747284371,3.08,191.8,191.73,20.93291738]
[1735747284662,3.08,191.8,191.75,2.613]
[1735747284868,3.08,191.8,191.73,20.93291738]
[1735747285764,3.08,191.8,191.71,1.5367]
[1735747285966,3.08,191.8,191.7,20.93291738]
[1735747286670,3.08,191.8,191.67,20.93291738]
[1735747286871,2.6129,191.76,191.69,2.6138]
[1735747287069,3.08,191.75,191.69,2.6138]
[1735747287361,3.08,191.75,191.66,3.1949]
[1735747287362,2.6125,191.8,191.73,2.6133]
[1735747287568,3.08,191.79,191.73,20.93291738]
[1735747287768,3.08,191.79,191.76,20.93291738]
[1735747288271,4.2236,191.86,191.78,2.6125]
[1735747288468,3.08,191.85,191.79,20.93291738]
[1735747289267,3.08,191.86,191.82,20.93291738]
[1735747289470,3.08,191.86,191.85,2.6117]
[1735747290669,3.08,191.91,191.85,20.93291738]
[1735747290876,3.08,191.92,191.88,20.93291738]
[1735747291070,1.4988,191.99,191.88,20.93291738]
[1735747291269,3.08,191.98,191.88,20.93291738]
[1735747291870,5.7516,192.01,191.91,20.93291738]
[1735747292076,3.08,192.0,191.91,20.93291738]
[1735747292774,2.6101,191.97,191.91,23.54381738]
[1735747293072,3.08,191.96,191.91,20.93291738]
[1735747294473,3.12,191.98,191.91,20.93291738]
[1735747294667,56.8894,192.02,191.96,2.6101]
[1735747294868,3.12,192.01,191.91,20.93291738]
[1735747295674,54.28,192.02,191.91,20.93291738]
[1735747295874,3.12,192.01,191.91,20.93291738]
[1735747296674,5.7295,192.01,191.95,2.6103]
[1735747296870,3.12,192.01,191.91,20.93291738]
[1735747297065,3.12,192.01,191.87,1.5812]
[1735747297066,24.05291738,192.01,191.87,1.5812]
[1735747297266,24.05291738,192.01,191.86,1.5299]
[1735747297675,2.6106,191.93,191.87,2.6114]
[1735747297868,3.12,191.92,191.87,2.6114]
[1735747298776,5.7308,191.92,191.85,2.6116]
[1735747299478,5.7308,191.92,191.82,20.93291738]
[1735747299778,5.7308,191.92,191.86,2.6115]
[1735747300674,2.611,191.91,191.84,2.6118]
[1735747300973,3.12,191.92,191.82,20.93291738]
[1735747301369,3.12,191.92,191.91,2.6109]
[1735747301578,3.12,191.96,191.9,20.93291738]
[1735747301773,20.93291738,192.06,191.9,20.93291738]
[1735747301980,3.12,192.01,191.9,20.93291738]
[1735747302579,2.6098,191.99,191.94,2.6104]
[1735747302876,3.12,192.01,191.9,20.93291738]
[1735747304082,2.6101,191.97,191.92,2.6107]
[1735747304281,3.12,191.96,191.92,2.6107]
[1735747304472,3.12,191.96,191.87,20.93291738]
[1735747304977,2.6103,191.95,191.9,2.6109]
[1735747305178,3.12,191.96,191.87,20.93291738]
[1735747305383,2.6107,191.93,191.88,2.6112]
[1735747305778,3.12,191.96,191.86,21.07807646]
[1735747306278,3.12,191.96,191.83,21.07807646]
[1735747306481,3.12,191.96,191.9,2.6109]
[1735747306482,5.7303,191.96,191.9,2.6109]
[1735747306876,3.12,191.96,191.9,2.6109]
[1735747307078,2.6107,191.93,191.87,2.6113]
[1735747307979,2.6107,191.93,191.88,2.6113]
[1735747308183,3.12,192.0,191.89,20.93291738]
[1735747308885,2.6098,191.99,191.89,20.93291738]
[1735747309283,2.6098,191.99,191.92,2.6107]
[1735747309483,3.12,192.0,191.88,21.07807646]
[1735747309677,3.12,192.0,191.9,4.4209002]
[1735747309883,3.12,192.0,191.91,2.6108]
[1735747310083,2.6102,191.97,191.91,2.6108]
[1735747310583,3.12,192.0,191.9,4.4209002]
[1735747310778,3.12,192.0,191.89,20.93291738]
[1735747311185,2.6098,191.99,191.92,2.6107]
[1735747311383,3.12,192.0,191.89,20.93291738]
[1735747311576,3.12,192.0,191.89,42.01099384]
[1735747312485,3.12,192.0,191.89,20.93291738]
[1735747312686,3.12,192.0,191.92,20.93291738]
[1735747312886,3.12,191.99,191.96,2.6101]
[1735747313283,3.12,191.99,191.92,20.93291738]
[1735747314391,3.12,192.0,191.95,20.93291738]
[1735747314589,3.2554,192.09,191.95,20.93291738]
[1735747314890,2.6092,192.04,191.98,2.6098]
[1735747315092,3.12,192.03,191.95,20.93291738]
[1735747315390,3.12,192.02,191.92,20.93291738]
[1735747315594,2.6098,191.99,191.94,2.6103]
[1735747315885,3.12,192.02,191.92,20.93291738]
[1735747316090,2.6097,192.0,191.95,2.6102]
[1735747316294,3.2554,192.09,191.92,20.93291738]
[1735747316486,3.12,192.08,191.92,20.93291738]
[1735747316886,20.93291738,192.05,191.91,21.07807646]
[1735747317090,1.5777,192.04,191.91,21.07807646]
[1735747317289,3.12,192.03,191.91,21.07807646]
[1735747317689,2.6102,191.96,191.91,2.6109]
[1735747317892,3.12,191.95,191.91,2.6109]
[1735747318388,3.12,191.95,191.89,22.47151738]
[1735747318593,3.12,191.95,191.89,20.93291738]
[1735747318791,3.12,191.95,191.87,21.07807646]
[1735747319492,2.6107,191.93,191.88,2.6111]
[1735747321995,5.7305,191.95,191.89,2.6111]
[1735747322195,3.12,191.95,191.88,20.93291738]
[1735747323297,3.12,191.95,191.92,2.6107]
[1735747323499,3.12,191.95,191.91,20.93291738]
[1735747323905,2.6105,191.94,191.89,2.6111]
[1735747325094,3.12,191.95,191.88,21.07807646]
[1735747325498,3.12,191.95,191.87,21.07807646]
[1735747325695,2.6111,191.9,191.87,21.07807646]
[1735747325898,3.14,191.89,191.87,21.07807646]
[1735747326397,3.14,191.89,191.84,21.07807646]
[1735747326893,2.6114,191.88,191.84,21.07807646]
[1735747327195,2.6114,191.88,191.83,57.00694042]
[1735747327196,3.14,191.89,191.82,2.612]
[1735747327600,2.6114,191.87,191.82,2.612]
[1735747327797,3.14,191.89,191.8,21.07807646]
[1735747327996,2.6115,191.87,191.78,21.07807646]